[Event "*** Titled Tuesday 3|2 Blitz (Early)"]
[Site "Chess.com"]
[Date "2016.11.01"]
[Round "6"]
[White "Andrejkin"]
[Black "KyronGriffith"]
[Result "0-1"]
[WhiteElo "2144"]
[BlackElo "2330"]
[TimeControl "180+2"]
[EndTime "12:18:54 PDT"]
[Termination "KyronGriffith won by resignation"]

1. e4 {[%clk 0:02:54.9]} 1... c5 {[%clk 0:02:56.3]} 2. Nf3 {[%clk 0:02:51.7]}
2... d6 {[%clk 0:02:54.1]} 3. d4 {[%clk 0:02:51.8]} 3... cxd4 {[%clk 0:02:56]}
4. Nxd4 {[%clk 0:02:53.7]} 4... Nf6 {[%clk 0:02:56.9]} 5. Nc3 {[%clk 0:02:44.7]}
5... g6 {[%clk 0:02:58.1]} 6. f3 {[%clk 0:02:44.2]} 6... Bg7 {[%clk 0:02:59.2]}
7. Be3 {[%clk 0:02:43.9]} 7... O-O {[%clk 0:03:00.3]} 8. Qd2 {[%clk 0:02:45.4]}
8... Nc6 {[%clk 0:02:59.9]} 9. O-O-O {[%clk 0:02:46.9]} 9... Bd7 {[%clk
0:02:57.3]} 10. g4 {[%clk 0:02:38.1]} 10... Nxd4 {[%clk 0:02:57.6]} 11. Bxd4
{[%clk 0:02:38.4]} 11... b5 {[%clk 0:02:58.8]} 12. Nd5 {[%clk 0:02:35.9]} 12...
Nxd5 {[%clk 0:02:54.5]} 13. exd5 {[%clk 0:02:37.8]} 13... Bxd4 {[%clk
0:02:50.3]} 14. Qxd4 {[%clk 0:02:39.7]} 14... Qc7 {[%clk 0:02:40.9]} 15. h4
{[%clk 0:02:36.4]} 15... Rfc8 {[%clk 0:02:39.6]} 16. Bd3 {[%clk 0:02:36.4]}
16... Qc5 {[%clk 0:02:38.1]} 17. Qxc5 {[%clk 0:02:33.3]} 17... Rxc5 {[%clk
0:02:38.6]} 18. h5 {[%clk 0:02:35]} 18... Rxd5 {[%clk 0:02:29.8]} 19. hxg6
{[%clk 0:02:29.6]} 19... hxg6 {[%clk 0:02:22.8]} 20. Rh6 {[%clk 0:02:25.2]}
20... Kg7 {[%clk 0:02:17.8]} 21. Rdh1 {[%clk 0:02:25.5]} 21... Rg8 {[%clk
0:02:18.6]} 22. Be4 {[%clk 0:02:15.3]} 22... Rc5 {[%clk 0:02:09.9]} 23. b4
{[%clk 0:02:11.5]} 23... Rc4 {[%clk 0:01:51.4]} 24. Bd5 {[%clk 0:02:01]} 24...
Rf4 {[%clk 0:01:47.8]} 25. a3 {[%clk 0:01:53.9]} 25... Kf6 {[%clk 0:01:37.7]}
26. Be4 {[%clk 0:01:15.1]} 26... Bxg4 {[%clk 0:01:32.8]} 27. R6h4 {[%clk
0:01:11.7]} 27... Rxe4 {[%clk 0:00:45.7]} 28. fxe4 {[%clk 0:01:01]} 28... Be6
{[%clk 0:00:47.2]} 29. Rh6 {[%clk 0:00:48.4]} 29... Ke5 {[%clk 0:00:47.6]} 30.
R1h4 {[%clk 0:00:39.8]} 30... g5 {[%clk 0:00:45.8]} 31. Rh1 {[%clk 0:00:31.6]}
31... Kxe4 {[%clk 0:00:45.7]} 32. Rg1 {[%clk 0:00:31.5]} 32... g4 {[%clk
0:00:45.8]} 33. Kd2 {[%clk 0:00:30.7]} 33... Kf3 {[%clk 0:00:39.3]} 34. Rhh1
{[%clk 0:00:28.4]} 34... g3 {[%clk 0:00:39.2]} 35. Rf1+ {[%clk 0:00:28.7]} 35...
Kg4 {[%clk 0:00:34.7]} 36. Re1 {[%clk 0:00:24.7]} 36... g2 {[%clk 0:00:31.1]}
37. Rhg1 {[%clk 0:00:25.4]} 37... Kg3 {[%clk 0:00:28.9]} 38. Re3+ {[%clk
0:00:23]} 38... Kh2 {[%clk 0:00:29.5]} 39. Ree1 {[%clk 0:00:24.9]} 39... Rc8
{[%clk 0:00:21.5]} 40. c3 {[%clk 0:00:22.5]} 40... Rc4 {[%clk 0:00:23]} 41. Kd3
{[%clk 0:00:20.8]} 41... Rf4 {[%clk 0:00:23.5]} 42. Kd2 {[%clk 0:00:20.4]} 42...
Rf2+ {[%clk 0:00:24.1]} 43. Ke3 {[%clk 0:00:20]} 43... Ra2 {[%clk 0:00:25.4]}
44. Kd4 {[%clk 0:00:18.9]} 44... Rd2+ {[%clk 0:00:23.5]} 45. Ke3 {[%clk
0:00:19.6]} 45... Rc2 {[%clk 0:00:24.8]} 46. Kd3 {[%clk 0:00:20]} 46... Ra2
{[%clk 0:00:25]} 47. Kd4 {[%clk 0:00:21]} 47... Bc4 {[%clk 0:00:25.1]} 0-1

[Event "*** Titled Tuesday 3|2 Blitz (Early)"]
[Site "Chess.com"]
[Date "2016.11.01"]
[Round "6"]
[White "Jahonas"]
[Black "HovmoellerHest"]
[Result "1-0"]
[WhiteElo "2173"]
[BlackElo "2279"]
[TimeControl "180+2"]
[EndTime "12:19:03 PDT"]
[Termination "Jahonas won by resignation"]

1. c4 {[%clk 0:02:57.8]} 1... c5 {[%clk 0:02:59.7]} 2. Nf3 {[%clk 0:02:58.1]}
2... Nc6 {[%clk 0:03:00.7]} 3. g3 {[%clk 0:02:59.2]} 3... e5 {[%clk 0:03:00.4]}
4. d3 {[%clk 0:02:59.6]} 4... g6 {[%clk 0:03:01.6]} 5. Bg2 {[%clk 0:03:00.9]}
5... Bg7 {[%clk 0:03:02.9]} 6. O-O {[%clk 0:03:02.1]} 6... Nge7 {[%clk
0:03:03.6]} 7. Nc3 {[%clk 0:03:03.4]} 7... O-O {[%clk 0:03:04]} 8. Be3 {[%clk
0:03:02.6]} 8... d6 {[%clk 0:03:02.3]} 9. Qc1 {[%clk 0:03:03.5]} 9... f5 {[%clk
0:02:55]} 10. Bh6 {[%clk 0:03:02.8]} 10... Be6 {[%clk 0:02:52.8]} 11. Bxg7
{[%clk 0:03:03.2]} 11... Kxg7 {[%clk 0:02:53.8]} 12. Ng5 {[%clk 0:03:04.1]}
12... Bg8 {[%clk 0:02:54.7]} 13. h4 {[%clk 0:03:00.5]} 13... h6 {[%clk 0:02:54]}
14. Nh3 {[%clk 0:03:01.5]} 14... Rc8 {[%clk 0:02:50.4]} 15. e3 {[%clk
0:03:02.6]} 15... b6 {[%clk 0:02:23.9]} 16. Qd2 {[%clk 0:03:01.5]} 16... d5
{[%clk 0:02:23.4]} 17. cxd5 {[%clk 0:03:00.7]} 17... Nxd5 {[%clk 0:02:24.5]} 18.
f4 {[%clk 0:03:00]} 18... Ndb4 {[%clk 0:02:15.1]} 19. Rad1 {[%clk 0:02:49.7]}
19... exf4 {[%clk 0:01:44.1]} 20. Nxf4 {[%clk 0:02:48.2]} 20... Ne5 {[%clk
0:01:41.7]} 21. d4 {[%clk 0:02:45.7]} 21... cxd4 {[%clk 0:01:34.7]} 22. exd4
{[%clk 0:02:46]} 22... Nc4 {[%clk 0:01:33.9]} 23. Qf2 {[%clk 0:02:39.7]} 23...
Re8 {[%clk 0:01:27.4]} 24. Rfe1 {[%clk 0:01:54.3]} 24... Qd7 {[%clk 0:01:23.4]}
25. d5 {[%clk 0:01:51.3]} 25... Kh7 {[%clk 0:01:04.1]} 26. h5 {[%clk 0:01:48.1]}
26... g5 {[%clk 0:01:01.4]} 27. Ne6 {[%clk 0:01:47.7]} 27... Nd6 {[%clk
0:00:53.3]} 28. a3 {[%clk 0:01:40.1]} 28... Na6 {[%clk 0:00:48]} 29. g4 {[%clk
0:01:30.8]} 29... Bxe6 {[%clk 0:00:24.4]} 30. dxe6 {[%clk 0:01:29.9]} 30... Rxe6
{[%clk 0:00:25.5]} 31. Rxe6 {[%clk 0:01:10.5]} 31... Qxe6 {[%clk 0:00:26.4]} 32.
gxf5 {[%clk 0:01:11.7]} 32... Qf6 {[%clk 0:00:16.4]} 33. Nd5 {[%clk 0:01:02.2]}
33... Qf7 {[%clk 0:00:16.9]} 34. Re1 {[%clk 0:00:57.4]} 34... Re8 {[%clk
0:00:15.7]} 35. f6 {[%clk 0:00:43.9]} 35... Nc5 {[%clk 0:00:13.7]} 36. Qc2+
{[%clk 0:00:24.4]} 36... Nde4 {[%clk 0:00:11.2]} 37. Rxe4 {[%clk 0:00:23.9]}
37... Nxe4 {[%clk 0:00:10.6]} 38. Bxe4+ {[%clk 0:00:24.5]} 38... Kh8 {[%clk
0:00:12.1]} 39. Qd3 {[%clk 0:00:21.4]} 39... Re5 {[%clk 0:00:11.3]} 40. Qc4
{[%clk 0:00:16.5]} 40... g4 {[%clk 0:00:10.3]} 41. Qc8+ {[%clk 0:00:17.2]} 41...
Re8 {[%clk 0:00:11.6]} 42. Qf5 {[%clk 0:00:17.9]} 42... Rg8 {[%clk 0:00:11.3]}
43. Kg2 {[%clk 0:00:18.7]} 43... g3 {[%clk 0:00:12.5]} 44. Ne7 {[%clk
0:00:19.4]} 44... Rg5 {[%clk 0:00:13.1]} 45. Ng6+ {[%clk 0:00:20.5]} 45... Kh7
{[%clk 0:00:13.9]} 46. Ne5+ {[%clk 0:00:18.8]} 46... Kg8 {[%clk 0:00:14.8]} 47.
Nxf7 {[%clk 0:00:19.5]} 47... Rxf5 {[%clk 0:00:16.3]} 48. Bxf5 {[%clk
0:00:21.4]} 48... Kxf7 {[%clk 0:00:17.8]} 49. Kxg3 {[%clk 0:00:22.9]} 49... Kxf6
{[%clk 0:00:19.7]} 50. Kf4 {[%clk 0:00:24.6]} 50... b5 {[%clk 0:00:20.7]} 51.
Bg6 {[%clk 0:00:26]} 51... a6 {[%clk 0:00:22.1]} 52. Ke4 {[%clk 0:00:27.5]}
52... a5 {[%clk 0:00:23.6]} 53. Kd4 {[%clk 0:00:29]} 53... b4 {[%clk 0:00:25.2]}
54. a4 {[%clk 0:00:30.5]} 1-0

[Event "*** Titled Tuesday 3|2 Blitz (Early)"]
[Site "Chess.com"]
[Date "2016.11.01"]
[Round "6"]
[White "SavelijTartakover"]
[Black "Anton_Demchenko"]
[Result "1-0"]
[WhiteElo "2488"]
[BlackElo "2607"]
[TimeControl "180+2"]
[EndTime "12:19:09 PDT"]
[Termination "SavelijTartakover won by resignation"]

1. d4 {[%clk 0:03:01.9]} 1... Nf6 {[%clk 0:03:00.9]} 2. c4 {[%clk 0:03:02.5]}
2... g6 {[%clk 0:03:02.3]} 3. Nc3 {[%clk 0:03:04]} 3... Bg7 {[%clk 0:03:03.8]}
4. e4 {[%clk 0:03:05.3]} 4... O-O {[%clk 0:03:05.7]} 5. Nf3 {[%clk 0:03:05.8]}
5... d6 {[%clk 0:03:07.1]} 6. Be2 {[%clk 0:03:07.4]} 6... Nbd7 {[%clk
0:03:07.7]} 7. O-O {[%clk 0:03:08.4]} 7... e5 {[%clk 0:03:09.3]} 8. Qc2 {[%clk
0:03:09.9]} 8... c6 {[%clk 0:03:09.2]} 9. Rd1 {[%clk 0:03:10.5]} 9... exd4
{[%clk 0:03:10.4]} 10. Nxd4 {[%clk 0:03:11]} 10... Re8 {[%clk 0:03:12.3]} 11.
Bg5 {[%clk 0:03:10]} 11... a5 {[%clk 0:03:10]} 12. Qd2 {[%clk 0:03:04.6]} 12...
a4 {[%clk 0:03:07.5]} 13. Rac1 {[%clk 0:02:59.6]} 13... Qa5 {[%clk 0:03:01.5]}
14. f3 {[%clk 0:02:56.6]} 14... Ne5 {[%clk 0:02:41.6]} 15. Bxf6 {[%clk
0:02:45.2]} 15... Bxf6 {[%clk 0:02:40.4]} 16. f4 {[%clk 0:02:39.2]} 16... Nd7
{[%clk 0:02:38.4]} 17. Nf3 {[%clk 0:02:34.5]} 17... Qc5+ {[%clk 0:02:26.3]} 18.
Kh1 {[%clk 0:02:34.1]} 18... Bxc3 {[%clk 0:02:27.2]} 19. Rxc3 {[%clk 0:02:28.6]}
19... Nf6 {[%clk 0:02:28]} 20. Bd3 {[%clk 0:02:19.1]} 20... Bg4 {[%clk
0:02:22.4]} 21. Qe2 {[%clk 0:02:01.9]} 21... Nh5 {[%clk 0:02:19.5]} 22. Qd2
{[%clk 0:02:02.6]} 22... Bxf3 {[%clk 0:02:18.9]} 23. gxf3 {[%clk 0:02:03.3]}
23... a3 {[%clk 0:02:05.6]} 24. b3 {[%clk 0:01:58.6]} 24... Qd4 {[%clk
0:02:06.6]} 25. Bf1 {[%clk 0:01:49.5]} 25... Qxd2 {[%clk 0:02:06.3]} 26. Rxd2
{[%clk 0:01:49.6]} 26... Nxf4 {[%clk 0:01:39.4]} 27. Rxd6 {[%clk 0:01:49.3]}
27... c5 {[%clk 0:01:40.9]} 28. b4 {[%clk 0:01:34.4]} 28... cxb4 {[%clk
0:01:36.7]} 29. Rb3 {[%clk 0:01:34.6]} 29... Rad8 {[%clk 0:01:27.9]} 30. c5
{[%clk 0:01:32.7]} 30... Rxd6 {[%clk 0:01:12.3]} 31. cxd6 {[%clk 0:01:33.4]}
31... Re6 {[%clk 0:01:13.6]} 32. e5 {[%clk 0:01:28.2]} 32... Rxe5 {[%clk
0:01:14.5]} 33. Rxb4 {[%clk 0:01:27.5]} 33... g5 {[%clk 0:01:14.6]} 34. h4
{[%clk 0:01:18.6]} 34... Re1 {[%clk 0:00:51.4]} 35. Kg1 {[%clk 0:01:18.9]} 35...
h6 {[%clk 0:00:52.4]} 36. hxg5 {[%clk 0:01:15.7]} 36... hxg5 {[%clk 0:00:53.1]}
37. Rb5 {[%clk 0:01:04.9]} 37... Ne6 {[%clk 0:00:30.3]} 38. Rxb7 {[%clk
0:00:44.1]} 38... Rd1 {[%clk 0:00:30.2]} 39. d7 {[%clk 0:00:43.5]} 39... Kf8
{[%clk 0:00:31.6]} 40. Ra7 {[%clk 0:00:43.2]} 40... Ke7 {[%clk 0:00:24]} 41.
Rxa3 {[%clk 0:00:41]} 41... Rxd7 {[%clk 0:00:25]} 42. Bc4 {[%clk 0:00:37.6]}
42... Nf4 {[%clk 0:00:23.6]} 43. Ra5 {[%clk 0:00:29.3]} 43... f6 {[%clk
0:00:24.2]} 44. Kf2 {[%clk 0:00:29.6]} 44... Rd4 {[%clk 0:00:23.6]} 45. Rc5
{[%clk 0:00:29.7]} 45... Kd6 {[%clk 0:00:24.4]} 46. Rc8 {[%clk 0:00:28.5]} 46...
Kd7 {[%clk 0:00:24.8]} 47. Rc5 {[%clk 0:00:28.8]} 47... Rd2+ {[%clk 0:00:25.4]}
48. Ke3 {[%clk 0:00:28.2]} 48... Rc2 {[%clk 0:00:25.4]} 49. Bb5+ {[%clk
0:00:26.6]} 1-0

[Event "*** Titled Tuesday 3|2 Blitz (Early)"]
[Site "Chess.com"]
[Date "2016.11.01"]
[Round "6"]
[White "josiwales"]
[Black "FearlessKing64"]
[Result "1-0"]
[WhiteElo "2204"]
[BlackElo "2159"]
[TimeControl "180+2"]
[EndTime "12:19:12 PDT"]
[Termination "josiwales won by resignation"]

1. e3 {[%clk 0:03:02]} 1... d5 {[%clk 0:02:56.3]} 2. d3 {[%clk 0:03:03.9]} 2...
e5 {[%clk 0:02:56.6]} 3. Ne2 {[%clk 0:03:05.8]} 3... Be6 {[%clk 0:02:55.1]} 4.
g3 {[%clk 0:03:07.1]} 4... Qd7 {[%clk 0:02:56.3]} 5. Bg2 {[%clk 0:03:08.6]} 5...
Bh3 {[%clk 0:02:50.4]} 6. Bxh3 {[%clk 0:03:07.6]} 6... Qxh3 {[%clk 0:02:50.4]}
7. Ng1 {[%clk 0:03:06.7]} 7... Qe6 {[%clk 0:02:44.4]} 8. Nc3 {[%clk 0:03:00.7]}
8... f5 {[%clk 0:02:41.4]} 9. e4 {[%clk 0:02:58.5]} 9... Bb4 {[%clk 0:02:30.1]}
10. Bd2 {[%clk 0:02:50.7]} 10... Bxc3 {[%clk 0:02:30.1]} 11. Bxc3 {[%clk
0:02:51.7]} 11... d4 {[%clk 0:02:23.9]} 12. Bd2 {[%clk 0:02:49.5]} 12... fxe4
{[%clk 0:02:24.2]} 13. dxe4 {[%clk 0:02:49.2]} 13... Nf6 {[%clk 0:02:24.4]} 14.
Qe2 {[%clk 0:02:47.1]} 14... Nbd7 {[%clk 0:02:21.1]} 15. Nf3 {[%clk 0:02:39.3]}
15... O-O-O {[%clk 0:02:10.2]} 16. O-O {[%clk 0:02:13.5]} 16... h6 {[%clk
0:01:53.8]} 17. Bb4 {[%clk 0:02:10.8]} 17... c5 {[%clk 0:01:29.3]} 18. Ba3
{[%clk 0:02:08.4]} 18... Kb8 {[%clk 0:01:27.4]} 19. b4 {[%clk 0:02:02.2]} 19...
c4 {[%clk 0:01:26.3]} 20. b5 {[%clk 0:01:59.2]} 20... Nb6 {[%clk 0:01:22.3]} 21.
Bb4 {[%clk 0:01:57.8]} 21... Rhe8 {[%clk 0:01:06.3]} 22. a4 {[%clk 0:01:58.1]}
22... d3 {[%clk 0:01:05]} 23. cxd3 {[%clk 0:01:48.9]} 23... cxd3 {[%clk
0:01:03.9]} 24. Qd1 {[%clk 0:01:44.7]} 24... Nxe4 {[%clk 0:00:58.1]} 25. Re1
{[%clk 0:01:45.5]} 25... Qc4 {[%clk 0:00:57.7]} 26. a5 {[%clk 0:01:35.2]} 26...
Nd5 {[%clk 0:00:51.2]} 27. Nd2 {[%clk 0:01:09.4]} 27... Nxd2 {[%clk 0:00:45]}
28. Bxd2 {[%clk 0:01:11.3]} 28... e4 {[%clk 0:00:44.8]} 29. b6 {[%clk
0:01:02.2]} 29... a6 {[%clk 0:00:43.5]} 30. Qg4 {[%clk 0:01:01.1]} 30... Qd4
{[%clk 0:00:33.8]} 31. Rac1 {[%clk 0:00:35.7]} 31... Rf8 {[%clk 0:00:29.8]} 32.
Rf1 {[%clk 0:00:29.7]} 32... g5 {[%clk 0:00:23.6]} 33. Qe6 {[%clk 0:00:28.5]}
33... Rfe8 {[%clk 0:00:16.9]} 34. Qxh6 {[%clk 0:00:21.4]} 34... e3 {[%clk
0:00:17.7]} 35. fxe3 {[%clk 0:00:19.3]} 35... Nxe3 {[%clk 0:00:18.8]} 36. Bxe3
{[%clk 0:00:18.9]} 36... Qxe3+ {[%clk 0:00:20.3]} 37. Kg2 {[%clk 0:00:17.8]}
37... d2 {[%clk 0:00:21.1]} 38. Rcd1 {[%clk 0:00:18.8]} 38... Qe4+ {[%clk
0:00:18.7]} 39. Kg1 {[%clk 0:00:19.6]} 39... Qd4+ {[%clk 0:00:19.2]} 40. Kg2
{[%clk 0:00:20.6]} 40... Re2+ {[%clk 0:00:20.3]} 41. Kh3 {[%clk 0:00:17.5]}
41... Rh8 {[%clk 0:00:21.1]} 42. Rf8+ {[%clk 0:00:17.3]} 42... Re8 {[%clk
0:00:18.2]} 43. Rxe8+ {[%clk 0:00:16.4]} 43... Rxe8 {[%clk 0:00:18.4]} 44. Qxg5
{[%clk 0:00:15.9]} 44... Rh8+ {[%clk 0:00:15.2]} 45. Kg2 {[%clk 0:00:17.1]}
45... Qe4+ {[%clk 0:00:16.1]} 46. Kg1 {[%clk 0:00:15.8]} 46... Qe2 {[%clk
0:00:13.9]} 47. Rxd2 {[%clk 0:00:13.2]} 47... Qe1+ {[%clk 0:00:13.7]} 48. Kg2
{[%clk 0:00:14.7]} 48... Re8 {[%clk 0:00:10.3]} 49. Rd8+ {[%clk 0:00:14.2]} 1-0

[Event "*** Titled Tuesday 3|2 Blitz (Early)"]
[Site "Chess.com"]
[Date "2016.11.01"]
[Round "6"]
[White "superjem123"]
[Black "michaelk123"]
[Result "1-0"]
[WhiteElo "2456"]
[BlackElo "2154"]
[TimeControl "180+2"]
[EndTime "12:19:13 PDT"]
[Termination "superjem123 won by resignation"]

1. c4 {[%clk 0:03:01.9]} 1... c5 {[%clk 0:03:00.3]} 2. g3 {[%clk 0:02:59.9]}
2... g6 {[%clk 0:03:00.9]} 3. Bg2 {[%clk 0:03:01]} 3... Bg7 {[%clk 0:03:02.4]}
4. Nc3 {[%clk 0:03:02.4]} 4... Nc6 {[%clk 0:03:02.7]} 5. e3 {[%clk 0:03:03.5]}
5... d6 {[%clk 0:02:59.6]} 6. Nge2 {[%clk 0:03:04.6]} 6... Bf5 {[%clk
0:02:58.9]} 7. d4 {[%clk 0:03:01.7]} 7... Qd7 {[%clk 0:02:59.8]} 8. O-O {[%clk
0:03:01.8]} 8... Bh3 {[%clk 0:02:32]} 9. a3 {[%clk 0:02:33.1]} 9... Nf6 {[%clk
0:02:21.2]} 10. b4 {[%clk 0:02:09.2]} 10... Bxg2 {[%clk 0:02:16.7]} 11. Kxg2
{[%clk 0:02:09.5]} 11... cxb4 {[%clk 0:02:17.5]} 12. axb4 {[%clk 0:02:11.1]}
12... Nxb4 {[%clk 0:02:18.8]} 13. Qb3 {[%clk 0:02:10.9]} 13... Nc6 {[%clk
0:01:57.2]} 14. d5 {[%clk 0:02:07.5]} 14... Ne5 {[%clk 0:01:52.1]} 15. f4 {[%clk
0:02:07.4]} 15... Nd3 {[%clk 0:01:50.3]} 16. Na4 {[%clk 0:02:05.1]} 16... Nxc1
{[%clk 0:01:43.5]} 17. Rfxc1 {[%clk 0:02:05.6]} 17... Ne4 {[%clk 0:01:38]} 18.
Nb6 {[%clk 0:02:04.7]} 18... Qd8 {[%clk 0:01:23.4]} 19. Qa4+ {[%clk 0:01:48.9]}
19... Kf8 {[%clk 0:01:22.1]} 20. Nxa8 {[%clk 0:01:49.3]} 20... Qxa8 {[%clk
0:00:58.6]} 21. Qxa7 {[%clk 0:01:44.5]} 21... Qxa7 {[%clk 0:00:32.3]} 22. Rxa7
{[%clk 0:01:44.8]} 22... Bf6 {[%clk 0:00:31.4]} 23. Ra8+ {[%clk 0:01:40.8]}
23... Kg7 {[%clk 0:00:32.5]} 24. Rxh8 {[%clk 0:01:39.7]} 24... Kxh8 {[%clk
0:00:34.4]} 25. Nd4 {[%clk 0:01:39]} 25... h5 {[%clk 0:00:33.4]} 26. Kf3 {[%clk
0:01:37.5]} 26... Nc5 {[%clk 0:00:29.7]} 27. Rb1 {[%clk 0:01:37]} 27... Kg7
{[%clk 0:00:30]} 28. Nb3 {[%clk 0:01:37.9]} 28... Nd3 {[%clk 0:00:26.7]} 29. Na5
{[%clk 0:01:37.5]} 29... Nb2 {[%clk 0:00:23.2]} 30. Rc1 {[%clk 0:01:27.1]} 30...
Nd3 {[%clk 0:00:19.3]} 31. Rd1 {[%clk 0:01:26.8]} 31... Nb2 {[%clk 0:00:17.7]}
32. Rc1 {[%clk 0:01:23.6]} 32... Nd3 {[%clk 0:00:18.2]} 33. Rf1 {[%clk
0:01:22.5]} 33... b6 {[%clk 0:00:12.3]} 34. Nb3 {[%clk 0:01:22.7]} 34... Nb2
{[%clk 0:00:12.4]} 35. Nd2 {[%clk 0:01:23.7]} 35... Bc3 {[%clk 0:00:11.7]} 36.
Ne4 {[%clk 0:01:24.8]} 36... Ba5 {[%clk 0:00:09]} 37. Rc1 {[%clk 0:01:22.4]}
37... Nd3 {[%clk 0:00:10.1]} 38. Rb1 {[%clk 0:01:23.2]} 38... f5 {[%clk
0:00:04.1]} 39. Nf2 {[%clk 0:01:23.2]} 39... Ne1+ {[%clk 0:00:05.2]} 40. Ke2
{[%clk 0:01:23.7]} 40... Nc2 {[%clk 0:00:06.3]} 41. Nd3 {[%clk 0:01:20.6]} 41...
Na3 {[%clk 0:00:05.4]} 42. Rc1 {[%clk 0:01:21.7]} 42... b5 {[%clk 0:00:05.5]}
43. c5 {[%clk 0:01:21.9]} 43... dxc5 {[%clk 0:00:03.8]} 44. Nxc5 {[%clk
0:01:23.8]} 44... Nc4 {[%clk 0:00:04.1]} 45. Ne6+ {[%clk 0:01:25.7]} 45... Kf6
{[%clk 0:00:04.6]} 46. Nd4 {[%clk 0:01:27.2]} 46... Nd6 {[%clk 0:00:04.5]} 47.
Rc5 {[%clk 0:01:23.2]} 47... Bb6 {[%clk 0:00:04.8]} 48. Rc6 {[%clk 0:01:18.6]}
48... Bxd4 {[%clk 0:00:04.5]} 49. exd4 {[%clk 0:01:20.5]} 49... h4 {[%clk
0:00:05.5]} 50. gxh4 {[%clk 0:01:20.8]} 50... Kg7 {[%clk 0:00:06.1]} 51. Rb6
{[%clk 0:01:18.7]} 51... Kf6 {[%clk 0:00:07.3]} 52. Kd3 {[%clk 0:01:17.6]} 52...
Kg7 {[%clk 0:00:06.9]} 53. Kc3 {[%clk 0:01:18]} 53... Kh6 {[%clk 0:00:07.8]} 54.
Rb8 {[%clk 0:01:13.6]} 54... Kg7 {[%clk 0:00:04.8]} 55. Kb4 {[%clk 0:01:13.3]}
55... Kh6 {[%clk 0:00:04.1]} 56. Rh8+ {[%clk 0:01:13.8]} 56... Kg7 {[%clk
0:00:04.9]} 57. Rd8 {[%clk 0:01:14.4]} 57... Kf6 {[%clk 0:00:05.8]} 58. Rxd6+
{[%clk 0:01:14.6]} 58... exd6 {[%clk 0:00:07]} 59. Kxb5 {[%clk 0:01:16.5]} 1-0

[Event "*** Titled Tuesday 3|2 Blitz (Early)"]
[Site "Chess.com"]
[Date "2016.11.01"]
[Round "6"]
[White "KestutisLabeckas"]
[Black "ulises2013"]
[Result "1/2-1/2"]
[WhiteElo "2458"]
[BlackElo "2274"]
[TimeControl "180+2"]
[EndTime "12:19:19 PDT"]
[Termination "Game drawn by repetition"]

1. d4 {[%clk 0:03:01.7]} 1... Nf6 {[%clk 0:02:52.1]} 2. Nf3 {[%clk 0:03:01.4]}
2... e6 {[%clk 0:02:52.9]} 3. e3 {[%clk 0:03:01.5]} 3... d5 {[%clk 0:02:52.7]}
4. Bd3 {[%clk 0:03:02.6]} 4... c5 {[%clk 0:02:52.8]} 5. b3 {[%clk 0:03:03.2]}
5... Nc6 {[%clk 0:02:39.3]} 6. Bb2 {[%clk 0:03:03.3]} 6... Bd6 {[%clk
0:02:38.7]} 7. O-O {[%clk 0:03:02.8]} 7... Qc7 {[%clk 0:02:38.4]} 8. a3 {[%clk
0:02:59.2]} 8... O-O {[%clk 0:02:34.7]} 9. c4 {[%clk 0:02:54.6]} 9... Ne4 {[%clk
0:02:31.2]} 10. Nc3 {[%clk 0:02:42.8]} 10... Nxc3 {[%clk 0:02:23.5]} 11. Bxc3
{[%clk 0:02:44.7]} 11... cxd4 {[%clk 0:02:23.2]} 12. exd4 {[%clk 0:02:44.7]}
12... dxc4 {[%clk 0:02:14.8]} 13. bxc4 {[%clk 0:02:45.1]} 13... e5 {[%clk
0:01:46.2]} 14. c5 {[%clk 0:02:11.9]} 14... Be7 {[%clk 0:01:39.3]} 15. d5 {[%clk
0:02:09.3]} 15... Nd8 {[%clk 0:01:31.4]} 16. d6 {[%clk 0:02:08.2]} 16... Bxd6
{[%clk 0:01:30.7]} 17. cxd6 {[%clk 0:02:09.4]} 17... Qxc3 {[%clk 0:01:29.1]} 18.
Rc1 {[%clk 0:01:58.1]} 18... Qxa3 {[%clk 0:01:28]} 19. Nxe5 {[%clk 0:01:58.5]}
19... Be6 {[%clk 0:01:24.2]} 20. Rc7 {[%clk 0:01:37.6]} 20... Nc6 {[%clk
0:01:21.3]} 21. Nxc6 {[%clk 0:01:09.1]} 21... bxc6 {[%clk 0:01:21.6]} 22. Rxc6
{[%clk 0:01:10.5]} 22... a5 {[%clk 0:01:18.9]} 23. Qf3 {[%clk 0:01:05.1]} 23...
Qb3 {[%clk 0:01:06.3]} 24. Rb1 {[%clk 0:01:02]} 24... Qd5 {[%clk 0:00:52.4]} 25.
Be4 {[%clk 0:01:01.2]} 25... Rab8 {[%clk 0:00:44.2]} 26. Rd1 {[%clk 0:00:49.1]}
26... Qg5 {[%clk 0:00:38.8]} 27. Qd3 {[%clk 0:00:42]} 27... a4 {[%clk
0:00:31.3]} 28. Bxh7+ {[%clk 0:00:39.7]} 28... Kh8 {[%clk 0:00:32.8]} 29. Be4
{[%clk 0:00:40.6]} 29... Rb3 {[%clk 0:00:33]} 30. Qd4 {[%clk 0:00:32.9]} 30...
a3 {[%clk 0:00:30.6]} 31. d7 {[%clk 0:00:27.7]} 31... Rbb8 {[%clk 0:00:29.4]}
32. Rd6 {[%clk 0:00:25.2]} 32... Rfd8 {[%clk 0:00:24.4]} 33. Bd5 {[%clk
0:00:16]} 33... a2 {[%clk 0:00:12.4]} 34. Bxe6 {[%clk 0:00:14.4]} 34... fxe6
{[%clk 0:00:14.3]} 35. Rxe6 {[%clk 0:00:13.3]} 35... Rb1 {[%clk 0:00:13]} 36.
Re8+ {[%clk 0:00:13.5]} 36... Kh7 {[%clk 0:00:13]} 37. Qe4+ {[%clk 0:00:10.8]}
37... Qg6 {[%clk 0:00:13.5]} 38. Qh4+ {[%clk 0:00:10.7]} 38... Qh6 {[%clk
0:00:14.5]} 39. Qe4+ {[%clk 0:00:10.3]} 39... Qg6 {[%clk 0:00:14.3]} 40. Qh4+
{[%clk 0:00:10.6]} 40... Qh6 {[%clk 0:00:15.6]} 41. Qe4+ {[%clk 0:00:08.9]}
41... Qg6 {[%clk 0:00:09.7]} 42. Qh4+ {[%clk 0:00:08]} 42... Qh6 {[%clk
0:00:10.8]} 43. Qe4+ {[%clk 0:00:08.8]} 1/2-1/2